[Event "Titled Tuesday Blitz March 08 Late 2022"]
[White "Andersson, Bjorn 1971"]
[Black "Zhurbinsky, David"]
[WhiteFideId "1702114"]
[BlackFideId "2072904"]
[WhiteElo "2207"]
[BlackElo "2528"]
[Result "0-1"]
[Round "10"]
[TimeControl "180+1"]
[Date "2022.03.09"]
[WhiteClock "0:00:02"]
[BlackClock "0:00:35"]

1. e4 {[%clk 0:03:00]}  e5 {[%clk 0:03:00]} 2. Nf3 {[%clk 0:03:00]}  Nc6 {[%clk 0:03:00]} 3. d4 {[%clk 0:03:01]}  exd4 {[%clk 0:03:01]} 4. Bb5 {[%clk 0:03:01]}  Bc5 {[%clk 0:02:55]} 5. O-O {[%clk 0:03:00]}  Nge7 {[%clk 0:02:51]} 6. Ng5 {[%clk 0:03:00]}  d5 {[%clk 0:02:31]} 7. Qh5 {[%clk 0:02:48]}  Ng6 {[%clk 0:02:26]} 8. Re1 {[%clk 0:02:31]}  dxe4 {[%clk 0:02:15]} 9. Rxe4+ {[%clk 0:02:28]}  Kf8 {[%clk 0:02:09]} 10. Nxf7 {[%clk 0:01:34]}  Kxf7 {[%clk 0:01:46]} 11. Bc4+ {[%clk 0:01:32]}  Kf8 {[%clk 0:01:44]} 12. Qxc5+ {[%clk 0:01:32]}  Qd6 {[%clk 0:01:44]} 13. Qxd6+ {[%clk 0:01:10]}  cxd6 {[%clk 0:01:45]} 14. Na3 {[%clk 0:00:57]}  Bf5 {[%clk 0:01:39]} 15. Re1 {[%clk 0:00:52]}  Nge5 {[%clk 0:01:36]} 16. Bd5 {[%clk 0:00:48]}  Re8 {[%clk 0:01:35]} 17. Bf4 {[%clk 0:00:44]}  h6 {[%clk 0:01:30]} 18. h3 {[%clk 0:00:42]}  g5 {[%clk 0:01:29]} 19. Bh2 {[%clk 0:00:42]}  Kg7 {[%clk 0:01:29]} 20. Nb5 {[%clk 0:00:32]}  Rd8 {[%clk 0:01:17]} 21. c3 {[%clk 0:00:20]}  dxc3 {[%clk 0:01:12]} 22. Nxc3 {[%clk 0:00:19]}  Nd3 {[%clk 0:01:09]} 23. Re2 {[%clk 0:00:18]}  Nce5 {[%clk 0:00:58]} 24. g4 {[%clk 0:00:17]}  Bg6 {[%clk 0:00:55]} 25. Ne4 {[%clk 0:00:16]}  Nf3+ {[%clk 0:00:52]} 26. Kh1 {[%clk 0:00:13]}  Nxh2 {[%clk 0:00:51]} 27. Kxh2 {[%clk 0:00:14]}  Nf4 {[%clk 0:00:52]} 28. Rd2 {[%clk 0:00:13]}  Nxd5 {[%clk 0:00:52]} 29. Ng3 {[%clk 0:00:11]}  Nf4 {[%clk 0:00:51]} 30. Re1 {[%clk 0:00:10]}  Kf7 {[%clk 0:00:47]} 31. Ne4 {[%clk 0:00:08]}  Rhe8 {[%clk 0:00:41]} 32. f3 {[%clk 0:00:06]}  d5 {[%clk 0:00:38]} 33. Red1 {[%clk 0:00:06]}  Bxe4 {[%clk 0:00:36]} 34. fxe4 {[%clk 0:00:06]}  Rxe4 {[%clk 0:00:37]} 35. Kg3 {[%clk 0:00:06]}  Re3+ {[%clk 0:00:37]} 36. Kf2 {[%clk 0:00:06]}  Rde8 {[%clk 0:00:37]} 37. Rc2 {[%clk 0:00:05]}  Nxh3+ {[%clk 0:00:37]} 38. Kg2 {[%clk 0:00:05]}  Nf4+ {[%clk 0:00:37]} 39. Kf2 {[%clk 0:00:04]}  R8e7 {[%clk 0:00:36]} 40. Rd4 {[%clk 0:00:03]}  Nd3+ {[%clk 0:00:35]} 41. Kg2 {[%clk 0:00:02]}  Ne1+ {[%clk 0:00:35]} 0-1


[Site "https://www.chess.com"]

[Event "Titled Tuesday Blitz March 08 Late 2022"]
[White "Antonova, Nadezhda"]
[Black "Corallo, Michael"]
[WhiteFideId "14700182"]
[BlackFideId "2024152"]
[WhiteElo "1751"]
[BlackElo "2150"]
[Result "1-0"]
[Round "10"]
[TimeControl "180+1"]
[Date "2022.03.09"]
[WhiteClock "0:00:59"]
[BlackClock "0:00:15"]

1. Nf3 {[%clk 0:02:55]}  Nf6 {[%clk 0:02:59]} 2. b3 {[%clk 0:02:55]}  g6 {[%clk 0:02:57]} 3. Bb2 {[%clk 0:02:55]}  Bg7 {[%clk 0:02:58]} 4. g3 {[%clk 0:02:55]}  O-O {[%clk 0:02:58]} 5. Bg2 {[%clk 0:02:55]}  d6 {[%clk 0:02:58]} 6. d4 {[%clk 0:02:54]}  Nbd7 {[%clk 0:02:55]} 7. O-O {[%clk 0:02:54]}  e5 {[%clk 0:02:54]} 8. dxe5 {[%clk 0:02:50]}  Ng4 {[%clk 0:02:54]} 9. Qd2 {[%clk 0:02:49]}  Ngxe5 {[%clk 0:02:49]} 10. c4 {[%clk 0:02:49]}  Re8 {[%clk 0:02:44]} 11. Nc3 {[%clk 0:02:45]}  a5 {[%clk 0:02:35]} 12. Rad1 {[%clk 0:02:41]}  Nc5 {[%clk 0:02:30]} 13. Nd5 {[%clk 0:02:34]}  Ne4 {[%clk 0:02:24]} 14. Qc1 {[%clk 0:02:33]}  Nxf3+ {[%clk 0:02:14]} 15. exf3 {[%clk 0:02:28]}  Nc5 {[%clk 0:02:09]} 16. Bxg7 {[%clk 0:02:28]}  Kxg7 {[%clk 0:02:09]} 17. Qc3+ {[%clk 0:02:28]}  f6 {[%clk 0:02:07]} 18. Rfe1 {[%clk 0:02:25]}  Rxe1+ {[%clk 0:02:06]} 19. Rxe1 {[%clk 0:02:25]}  Be6 {[%clk 0:02:07]} 20. f4 {[%clk 0:02:13]}  Bxd5 {[%clk 0:01:51]} 21. Bxd5 {[%clk 0:02:13]}  c6 {[%clk 0:01:31]} 22. Bf3 {[%clk 0:02:10]}  Qc7 {[%clk 0:01:26]} 23. Qe3 {[%clk 0:01:58]}  Kf7 {[%clk 0:01:10]} 24. f5 {[%clk 0:01:51]}  Kg7 {[%clk 0:00:48]} 25. fxg6 {[%clk 0:01:43]}  hxg6 {[%clk 0:00:49]} 26. h4 {[%clk 0:01:43]}  Rf8 {[%clk 0:00:43]} 27. Kg2 {[%clk 0:01:39]}  Nd7 {[%clk 0:00:40]} 28. h5 {[%clk 0:01:37]}  Ne5 {[%clk 0:00:31]} 29. hxg6 {[%clk 0:01:33]}  Nxg6 {[%clk 0:00:28]} 30. Bh5 {[%clk 0:01:07]}  Rh8 {[%clk 0:00:14]} 31. Bxg6 {[%clk 0:00:59]}  Kxg6 {[%clk 0:00:15]} 32. Qe4+ {[%clk 0:00:59]}  Kg7 {[%clk 0:00:15]} 33. Qe7+ {[%clk 0:00:59]} 1-0


[Site "https://www.chess.com"]

[Event "Titled Tuesday Blitz March 08 Late 2022"]
[White "Caruana, Fabiano"]
[Black "Chigaev, Maksim"]
[WhiteFideId "2020009"]
[BlackFideId "4108116"]
[WhiteElo "2744"]
[BlackElo "2502"]
[Result "1-0"]
[Round "10"]
[TimeControl "180+1"]
[Date "2022.03.08"]
[WhiteClock "0:00:11"]
[BlackClock "0:00:01"]

1. d4 {[%clk 0:03:00]}  Nf6 {[%clk 0:02:59]} 2. Bg5 {[%clk 0:02:59]}  g6 {[%clk 0:02:58]} 3. Bxf6 {[%clk 0:02:59]}  exf6 {[%clk 0:02:59]} 4. e3 {[%clk 0:02:59]}  d5 {[%clk 0:02:59]} 5. g3 {[%clk 0:02:59]}  h5 {[%clk 0:02:58]} 6. h4 {[%clk 0:02:59]}  Bg4 {[%clk 0:02:57]} 7. Be2 {[%clk 0:02:54]}  Be6 {[%clk 0:02:52]} 8. Nd2 {[%clk 0:02:55]}  c6 {[%clk 0:02:50]} 9. Bf3 {[%clk 0:02:52]}  f5 {[%clk 0:02:48]} 10. Ne2 {[%clk 0:02:52]}  Bd6 {[%clk 0:02:47]} 11. c3 {[%clk 0:02:49]}  Nd7 {[%clk 0:02:47]} 12. a4 {[%clk 0:02:48]}  a5 {[%clk 0:02:46]} 13. Qc2 {[%clk 0:02:48]}  Nf6 {[%clk 0:02:45]} 14. Nf4 {[%clk 0:02:40]}  Bxf4 {[%clk 0:02:36]} 15. exf4 {[%clk 0:02:41]}  Ne4 {[%clk 0:02:35]} 16. O-O {[%clk 0:02:38]}  O-O {[%clk 0:02:35]} 17. Rfb1 {[%clk 0:02:37]}  Qc7 {[%clk 0:02:26]} 18. b4 {[%clk 0:02:33]}  axb4 {[%clk 0:02:26]} 19. cxb4 {[%clk 0:02:34]}  Ra7 {[%clk 0:02:19]} 20. Be2 {[%clk 0:02:31]}  Rfa8 {[%clk 0:02:07]} 21. Nf3 {[%clk 0:02:30]}  f6 {[%clk 0:02:01]} 22. Ne1 {[%clk 0:02:19]}  Qb6 {[%clk 0:01:26]} 23. Nf3 {[%clk 0:02:19]}  Kg7 {[%clk 0:01:23]} 24. Kg2 {[%clk 0:02:19]}  Bf7 {[%clk 0:01:23]} 25. Ra3 {[%clk 0:02:09]}  Nd6 {[%clk 0:01:20]} 26. a5 {[%clk 0:01:56]}  Qd8 {[%clk 0:01:18]} 27. Nd2 {[%clk 0:01:46]}  b6 {[%clk 0:01:12]} 28. a6 {[%clk 0:01:39]}  b5 {[%clk 0:01:05]} 29. Rba1 {[%clk 0:01:39]}  Nc4 {[%clk 0:00:58]} 30. Nxc4 {[%clk 0:01:28]}  bxc4 {[%clk 0:00:36]} 31. Ra5 {[%clk 0:01:01]}  Qb6 {[%clk 0:00:36]} 32. Qa4 {[%clk 0:01:01]}  Qxd4 {[%clk 0:00:25]} 33. Qxc6 {[%clk 0:00:55]}  c3 {[%clk 0:00:12]} 34. b5 {[%clk 0:00:50]}  Be8 {[%clk 0:00:12]} 35. Qd6 {[%clk 0:00:45]}  Rd7 {[%clk 0:00:05]} 36. Qe6 {[%clk 0:00:33]}  c2 {[%clk 0:00:03]} 37. Qe3 {[%clk 0:00:27]}  Qb2 {[%clk 0:00:03]} 38. Bf3 {[%clk 0:00:22]}  d4 {[%clk 0:00:03]} 39. Qd2 {[%clk 0:00:21]}  Rc8 {[%clk 0:00:02]} 40. a7 {[%clk 0:00:19]}  d3 {[%clk 0:00:01]} 41. a8=Q {[%clk 0:00:18]}  Rxa8 {[%clk 0:00:02]} 42. Rxa8 {[%clk 0:00:19]}  Bf7 {[%clk 0:00:02]} 43. Bc6 {[%clk 0:00:15]}  Re7 {[%clk 0:00:02]} 44. Bf3 {[%clk 0:00:10]}  Rc7 {[%clk 0:00:01]} 45. Qxd3 {[%clk 0:00:10]}  c1=Q {[%clk 0:00:01]} 46. Rxc1 {[%clk 0:00:11]}  Rxc1 {[%clk 0:00:01]} 47. Qd8 {[%clk 0:00:11]} 1-0


[Site "https://www.chess.com"]

[Event "Titled Tuesday Blitz March 08 Late 2022"]
[White "Cori T., Deysi"]
[Black "Mikhalsky, Vladimir"]
[WhiteFideId "3801934"]
[BlackFideId "14144352"]
[WhiteElo "2341"]
[BlackElo "2301"]
[Result "1-0"]
[Round "10"]
[TimeControl "180+1"]
[Date "2022.03.08"]
[WhiteClock "0:00:17"]
[BlackClock "0:00:01"]

1. d4 {[%clk 0:03:00]}  Nf6 {[%clk 0:02:58]} 2. c4 {[%clk 0:03:00]}  g6 {[%clk 0:02:57]} 3. Nf3 {[%clk 0:03:00]}  Bg7 {[%clk 0:02:57]} 4. g3 {[%clk 0:03:00]}  O-O {[%clk 0:02:58]} 5. Bg2 {[%clk 0:03:01]}  d6 {[%clk 0:02:58]} 6. O-O {[%clk 0:03:02]}  Nc6 {[%clk 0:02:57]} 7. Nc3 {[%clk 0:03:02]}  e5 {[%clk 0:02:57]} 8. dxe5 {[%clk 0:03:02]}  Nxe5 {[%clk 0:02:55]} 9. Qb3 {[%clk 0:02:55]}  c6 {[%clk 0:02:28]} 10. Rd1 {[%clk 0:02:55]}  Qc7 {[%clk 0:02:27]} 11. Bg5 {[%clk 0:02:44]}  Be6 {[%clk 0:02:21]} 12. Nxe5 {[%clk 0:02:44]}  dxe5 {[%clk 0:02:20]} 13. Rac1 {[%clk 0:02:41]}  h6 {[%clk 0:02:15]} 14. Be3 {[%clk 0:02:41]}  b6 {[%clk 0:02:05]} 15. Nd5 {[%clk 0:02:37]}  Bxd5 {[%clk 0:01:36]} 16. cxd5 {[%clk 0:02:35]}  c5 {[%clk 0:01:35]} 17. d6 {[%clk 0:02:35]}  Qd7 {[%clk 0:01:35]} 18. Bxa8 {[%clk 0:02:34]}  Rxa8 {[%clk 0:01:35]} 19. Qd3 {[%clk 0:02:22]}  Qe6 {[%clk 0:01:31]} 20. a3 {[%clk 0:02:19]}  Rd8 {[%clk 0:01:30]} 21. b4 {[%clk 0:02:19]}  cxb4 {[%clk 0:01:19]} 22. axb4 {[%clk 0:02:19]}  Bf8 {[%clk 0:01:18]} 23. Rc6 {[%clk 0:02:16]}  Ne8 {[%clk 0:01:13]} 24. b5 {[%clk 0:02:13]}  Rxd6 {[%clk 0:01:10]} 25. Qc2 {[%clk 0:02:10]}  Rxd1+ {[%clk 0:01:03]} 26. Qxd1 {[%clk 0:02:10]}  Qe7 {[%clk 0:00:47]} 27. Qd2 {[%clk 0:02:01]}  Kh7 {[%clk 0:00:43]} 28. h4 {[%clk 0:02:01]}  Nd6 {[%clk 0:00:42]} 29. Qd5 {[%clk 0:02:00]}  Nf5 {[%clk 0:00:40]} 30. Rc8 {[%clk 0:01:56]}  Nxe3 {[%clk 0:00:38]} 31. fxe3 {[%clk 0:01:56]}  Bg7 {[%clk 0:00:35]} 32. Rd8 {[%clk 0:01:47]}  Qa3 {[%clk 0:00:34]} 33. Kf2 {[%clk 0:01:43]}  Qe7 {[%clk 0:00:31]} 34. Rd7 {[%clk 0:01:43]}  Qf6+ {[%clk 0:00:31]} 35. Kg2 {[%clk 0:01:43]}  Kg8 {[%clk 0:00:31]} 36. Rxa7 {[%clk 0:01:43]}  h5 {[%clk 0:00:31]} 37. Rb7 {[%clk 0:01:42]}  Bh6 {[%clk 0:00:31]} 38. Qf3 {[%clk 0:01:41]}  Qe6 {[%clk 0:00:30]} 39. Rc7 {[%clk 0:01:22]}  e4 {[%clk 0:00:29]} 40. Qf2 {[%clk 0:01:18]}  Qd5 {[%clk 0:00:27]} 41. Rc8+ {[%clk 0:01:18]}  Kg7 {[%clk 0:00:26]} 42. Qe1 {[%clk 0:01:15]}  Bxe3 {[%clk 0:00:19]} 43. Qc3+ {[%clk 0:01:14]}  Bd4 {[%clk 0:00:19]} 44. Qc4 {[%clk 0:00:59]}  Qe5 {[%clk 0:00:17]} 45. Rc7 {[%clk 0:00:49]}  Qf6 {[%clk 0:00:17]} 46. Rxf7+ {[%clk 0:00:49]}  Qxf7 {[%clk 0:00:17]} 47. Qxd4+ {[%clk 0:00:50]}  Qf6 {[%clk 0:00:17]} 48. Qxe4 {[%clk 0:00:49]}  Qb2 {[%clk 0:00:17]} 49. Qc4 {[%clk 0:00:45]}  Kf6 {[%clk 0:00:16]} 50. Kf3 {[%clk 0:00:45]}  Qa3+ {[%clk 0:00:16]} 51. e3 {[%clk 0:00:45]}  Qa5 {[%clk 0:00:10]} 52. Qc6+ {[%clk 0:00:36]}  Kf7 {[%clk 0:00:10]} 53. Qd7+ {[%clk 0:00:36]}  Kf6 {[%clk 0:00:10]} 54. Qd4+ {[%clk 0:00:37]}  Kf7 {[%clk 0:00:10]} 55. Qd5+ {[%clk 0:00:36]}  Kf6 {[%clk 0:00:11]} 56. Kf4 {[%clk 0:00:37]}  Qe1 {[%clk 0:00:08]} 57. Qc6+ {[%clk 0:00:36]}  Kf7 {[%clk 0:00:09]} 58. Qb7+ {[%clk 0:00:36]}  Kf6 {[%clk 0:00:08]} 59. Qxb6+ {[%clk 0:00:35]}  Kf7 {[%clk 0:00:09]} 60. Qb7+ {[%clk 0:00:34]}  Kf6 {[%clk 0:00:09]} 61. b6 {[%clk 0:00:34]}  Qb4+ {[%clk 0:00:06]} 62. Kf3 {[%clk 0:00:31]}  Qe1 {[%clk 0:00:06]} 63. Qc6+ {[%clk 0:00:31]}  Ke5 {[%clk 0:00:06]} 64. Qe4+ {[%clk 0:00:30]}  Kf6 {[%clk 0:00:06]} 65. Qf4+ {[%clk 0:00:30]}  Ke6 {[%clk 0:00:06]} 66. Qe4+ {[%clk 0:00:30]}  Kf6 {[%clk 0:00:06]} 67. Qd4+ {[%clk 0:00:30]}  Ke6 {[%clk 0:00:06]} 68. Qc4+ {[%clk 0:00:28]}  Kf6 {[%clk 0:00:06]} 69. Qf4+ {[%clk 0:00:17]}  Ke6 {[%clk 0:00:05]} 70. Kg2 {[%clk 0:00:18]}  Qe2+ {[%clk 0:00:04]} 71. Qf2 {[%clk 0:00:18]}  Qb5 {[%clk 0:00:04]} 72. e4 {[%clk 0:00:18]}  Ke5 {[%clk 0:00:03]} 73. Qf4+ {[%clk 0:00:18]}  Ke6 {[%clk 0:00:04]} 74. Qe3 {[%clk 0:00:17]}  Ke5 {[%clk 0:00:04]} 75. Kf3 {[%clk 0:00:17]}  Ke6 {[%clk 0:00:04]} 76. Qd4 {[%clk 0:00:16]}  Qf1+ {[%clk 0:00:03]} 77. Qf2 {[%clk 0:00:16]}  Qd3+ {[%clk 0:00:03]} 78. Kg2 {[%clk 0:00:16]}  Qxe4+ {[%clk 0:00:04]} 79. Kh2 {[%clk 0:00:17]}  Qb4 {[%clk 0:00:03]} 80. Qe3+ {[%clk 0:00:18]}  Kf7 {[%clk 0:00:03]} 81. Kg2 {[%clk 0:00:18]}  Kg7 {[%clk 0:00:03]} 82. Kf3 {[%clk 0:00:18]}  Qb5 {[%clk 0:00:02]} 83. Ke4 {[%clk 0:00:17]}  Kh7 {[%clk 0:00:02]} 84. Qd4 {[%clk 0:00:17]}  Qc6+ {[%clk 0:00:02]} 85. Ke5 {[%clk 0:00:17]}  Qe8+ {[%clk 0:00:02]} 86. Kd6 {[%clk 0:00:17]}  Qd8+ {[%clk 0:00:02]} 87. Kc5 {[%clk 0:00:18]}  Qf8+ {[%clk 0:00:02]} 88. Kb5 {[%clk 0:00:18]}  Qe8+ {[%clk 0:00:02]} 89. Kc5 {[%clk 0:00:17]}  Qf8+ {[%clk 0:00:02]} 90. Qd6 {[%clk 0:00:17]}  Qf2+ {[%clk 0:00:02]} 91. Kc6 {[%clk 0:00:17]}  Qf3+ {[%clk 0:00:02]} 92. Kc7 {[%clk 0:00:18]}  Qc3+ {[%clk 0:00:02]} 93. Kd8 {[%clk 0:00:18]}  Qf3 {[%clk 0:00:02]} 94. Qc7+ {[%clk 0:00:17]}  Qf7 {[%clk 0:00:01]} 95. Qxf7+ {[%clk 0:00:17]}  Kh6 {[%clk 0:00:02]} 96. b7 {[%clk 0:00:16]}  g5 {[%clk 0:00:01]} 97. Qf6+ {[%clk 0:00:16]}  Kh7 {[%clk 0:00:01]} 98. hxg5 {[%clk 0:00:17]}  h4 {[%clk 0:00:01]} 99. g6+ {[%clk 0:00:18]}  Kg8 {[%clk 0:00:01]} 100. g7 {[%clk 0:00:17]} 1-0


[Site "https://www.chess.com"]

[Event "Titled Tuesday Blitz March 08 Late 2022"]
[White "Csonka, Balazs"]
[Black "Martin Barcelo, Carles"]
[WhiteFideId "742910"]
[BlackFideId "24561444"]
[WhiteElo "2404"]
[BlackElo "1875"]
[Result "1/2-1/2"]
[Round "10"]
[TimeControl "180+1"]
[Date "2022.03.09"]
[WhiteClock "0:00:18"]
[BlackClock "0:00:19"]

1. d4 {[%clk 0:03:00]}  Nf6 {[%clk 0:02:55]} 2. c4 {[%clk 0:03:00]}  g6 {[%clk 0:02:53]} 3. Nc3 {[%clk 0:02:59]}  Bg7 {[%clk 0:02:53]} 4. e4 {[%clk 0:02:59]}  d6 {[%clk 0:02:54]} 5. Nf3 {[%clk 0:02:59]}  O-O {[%clk 0:02:53]} 6. Be2 {[%clk 0:02:56]}  e5 {[%clk 0:02:53]} 7. O-O {[%clk 0:02:53]}  Bg4 {[%clk 0:02:51]} 8. d5 {[%clk 0:02:19]}  a5 {[%clk 0:02:50]} 9. Ne1 {[%clk 0:02:18]}  Bd7 {[%clk 0:02:49]} 10. Nd3 {[%clk 0:02:16]}  Na6 {[%clk 0:02:48]} 11. Be3 {[%clk 0:02:16]}  b6 {[%clk 0:02:48]} 12. Rb1 {[%clk 0:01:35]}  Nc5 {[%clk 0:02:48]} 13. Nxc5 {[%clk 0:01:35]}  bxc5 {[%clk 0:02:48]} 14. b3 {[%clk 0:01:35]}  Ne8 {[%clk 0:02:41]} 15. a3 {[%clk 0:01:33]}  f5 {[%clk 0:02:32]} 16. f3 {[%clk 0:01:32]}  f4 {[%clk 0:02:28]} 17. Bf2 {[%clk 0:01:32]}  Rb8 {[%clk 0:02:12]} 18. Nb5 {[%clk 0:01:24]}  g5 {[%clk 0:02:07]} 19. b4 {[%clk 0:01:10]}  axb4 {[%clk 0:02:07]} 20. axb4 {[%clk 0:01:10]}  cxb4 {[%clk 0:02:08]} 21. Rxb4 {[%clk 0:01:10]}  h5 {[%clk 0:02:07]} 22. c5 {[%clk 0:00:57]}  Qf6 {[%clk 0:02:07]} 23. c6 {[%clk 0:00:46]}  Bc8 {[%clk 0:02:05]} 24. Ra4 {[%clk 0:00:32]}  Qg6 {[%clk 0:02:02]} 25. Na7 {[%clk 0:00:29]}  Nf6 {[%clk 0:01:49]} 26. Kh1 {[%clk 0:00:27]}  g4 {[%clk 0:01:48]} 27. Bh4 {[%clk 0:00:25]}  Ra8 {[%clk 0:01:02]} 28. Ra1 {[%clk 0:00:19]}  Bh6 {[%clk 0:00:22]} 29. Nxc8 {[%clk 0:00:16]}  Raxc8 {[%clk 0:00:21]} 30. Bxf6 {[%clk 0:00:15]}  Rxf6 {[%clk 0:00:18]} 31. fxg4 {[%clk 0:00:15]}  h4 {[%clk 0:00:16]} 32. Bf3 {[%clk 0:00:11]}  Bg5 {[%clk 0:00:15]} 33. h3 {[%clk 0:00:11]}  Rff8 {[%clk 0:00:14]} 34. Qd3 {[%clk 0:00:10]}  Rb8 {[%clk 0:00:13]} 35. Rfb1 {[%clk 0:00:11]}  Qf6 {[%clk 0:00:12]} 36. Rb7 {[%clk 0:00:11]}  Qe7 {[%clk 0:00:11]} 37. Raa7 {[%clk 0:00:10]}  Rbc8 {[%clk 0:00:11]} 38. Qa3 {[%clk 0:00:09]}  Bf6 {[%clk 0:00:09]} 39. Qa5 {[%clk 0:00:09]}  Rf7 {[%clk 0:00:08]} 40. Be2 {[%clk 0:00:09]}  Qe8 {[%clk 0:00:09]} 41. Rxc7 {[%clk 0:00:05]}  Rfxc7 {[%clk 0:00:06]} 42. Rxc7 {[%clk 0:00:06]}  f3 {[%clk 0:00:06]} 43. Bxf3 {[%clk 0:00:03]}  Rb8 {[%clk 0:00:06]} 44. Rb7 {[%clk 0:00:03]}  Rc8 {[%clk 0:00:06]} 45. Qb5 {[%clk 0:00:02]}  Bg5 {[%clk 0:00:06]} 46. Qb1 {[%clk 0:00:03]}  Qf8 {[%clk 0:00:06]} 47. Qe1 {[%clk 0:00:02]}  Qf4 {[%clk 0:00:05]} 48. Rd7 {[%clk 0:00:02]}  Rb8 {[%clk 0:00:03]} 49. c7 {[%clk 0:00:03]}  Rc8 {[%clk 0:00:03]} 50. Rxd6 {[%clk 0:00:02]}  Rxc7 {[%clk 0:00:02]} 51. Rc6 {[%clk 0:00:03]}  Rb7 {[%clk 0:00:02]} 52. d6 {[%clk 0:00:03]}  Rb2 {[%clk 0:00:03]} 53. d7 {[%clk 0:00:03]}  Rd2 {[%clk 0:00:03]} 54. Rc8+ {[%clk 0:00:03]}  Kg7 {[%clk 0:00:04]} 55. Rc7 {[%clk 0:00:04]}  Kg6 {[%clk 0:00:03]} 56. Rc6+ {[%clk 0:00:04]}  Kg7 {[%clk 0:00:03]} 57. Rc7 {[%clk 0:00:05]}  Kg6 {[%clk 0:00:04]} 58. Qb1 {[%clk 0:00:05]}  Qg3 {[%clk 0:00:02]} 59. Rc6+ {[%clk 0:00:05]}  Kg7 {[%clk 0:00:02]} 60. Rc7 {[%clk 0:00:05]}  Kg6 {[%clk 0:00:02]} 61. d8=Q {[%clk 0:00:05]}  Bxd8 {[%clk 0:00:02]} 62. Rc6+ {[%clk 0:00:05]}  Bf6 {[%clk 0:00:02]} 63. Qc1 {[%clk 0:00:05]}  Qf4 {[%clk 0:00:01]} 64. Rc2 {[%clk 0:00:06]}  Rxc2 {[%clk 0:00:01]} 65. Qxc2 {[%clk 0:00:07]}  Qe3 {[%clk 0:00:01]} 66. Qd1 {[%clk 0:00:07]}  Bg5 {[%clk 0:00:01]} 67. Kh2 {[%clk 0:00:07]}  Bf4+ {[%clk 0:00:01]} 68. Kh1 {[%clk 0:00:07]}  Qc1 {[%clk 0:00:01]} 69. Qxc1 {[%clk 0:00:07]}  Bxc1 {[%clk 0:00:02]} 70. Kh2 {[%clk 0:00:07]}  Bf4+ {[%clk 0:00:03]} 71. Kg1 {[%clk 0:00:08]}  Kg5 {[%clk 0:00:04]} 72. Kf2 {[%clk 0:00:08]}  Bg3+ {[%clk 0:00:04]} 73. Ke3 {[%clk 0:00:09]}  Bf4+ {[%clk 0:00:05]} 74. Kd3 {[%clk 0:00:09]}  Bg3 {[%clk 0:00:05]} 75. Kc4 {[%clk 0:00:10]}  Bf4 {[%clk 0:00:06]} 76. Kd5 {[%clk 0:00:10]}  Bg3 {[%clk 0:00:07]} 77. Ke6 {[%clk 0:00:11]}  Bf4 {[%clk 0:00:07]} 78. Kf7 {[%clk 0:00:12]}  Bg3 {[%clk 0:00:08]} 79. Kg7 {[%clk 0:00:13]}  Bf4 {[%clk 0:00:09]} 80. Kf7 {[%clk 0:00:13]}  Bg3 {[%clk 0:00:10]} 81. Ke6 {[%clk 0:00:14]}  Bf4 {[%clk 0:00:10]} 82. Kd5 {[%clk 0:00:15]}  Bg3 {[%clk 0:00:11]} 83. Kc4 {[%clk 0:00:15]}  Bf4 {[%clk 0:00:12]} 84. Kc3 {[%clk 0:00:16]}  Bg3 {[%clk 0:00:12]} 85. Kd3 {[%clk 0:00:17]}  Bf4 {[%clk 0:00:13]} 86. Ke2 {[%clk 0:00:18]}  Bg3 {[%clk 0:00:14]} 87. Kf1 {[%clk 0:00:18]}  Bf4 {[%clk 0:00:14]} 88. Be2 {[%clk 0:00:19]}  Bg3 {[%clk 0:00:15]} 89. Kg1 {[%clk 0:00:19]}  Bf4 {[%clk 0:00:16]} 90. Kf2 {[%clk 0:00:20]}  Bg3+ {[%clk 0:00:16]} 91. Kf3 {[%clk 0:00:21]}  Bf4 {[%clk 0:00:17]} 92. Ba6 {[%clk 0:00:19]}  Bg3 {[%clk 0:00:17]} 93. Bf1 {[%clk 0:00:17]}  Bf4 {[%clk 0:00:17]} 94. Be2 {[%clk 0:00:17]}  Bg3 {[%clk 0:00:18]} 95. Bf1 {[%clk 0:00:17]}  Bf4 {[%clk 0:00:19]} 96. Be2 {[%clk 0:00:18]}  Bg3 {[%clk 0:00:19]} 97. Bf1 {[%clk 0:00:18]} 1/2-1/2


[Site "https://www.chess.com"]